bitfinex/quotes_ETHUSD_20240713
["timestamp","ask_amount","ask_price","bid_price","bid_amount"]
[1720851487886,2.3507,3142.8,3142.0,2.4572]
[1720851488468,0.55,3142.7,3142.0,2.4572]
[1720851489170,0.04822436,3142.6,3142.0,2.4572]
[1720851489370,0.55,3142.5,3142.0,2.4572]
[1720851489910,0.04810043,3142.4,3142.0,2.4572]
[1720851490213,0.04810043,3142.4,3142.1,2.22776]
[1720851490713,0.0480612,3142.3,3142.0,2.4572]
[1720851490866,0.0480612,3142.3,3142.1,2.2278]
[1720851491072,0.04800011,3142.2,3142.0,2.4572]
[1720851491303,1.03307,3142.7,3142.0,2.4572]
[1720851491509,0.55,3142.6,3141.7,3.2682]
[1720851491687,2.3507,3142.5,3141.7,3.2682]
[1720851492323,2.3507,3142.5,3141.7,5.49628]
[1720851492682,0.04811355,3142.4,3141.7,5.49628]
[1720851500428,0.04811355,3142.4,3142.1,0.811]
[1720851500589,0.04811355,3142.4,3142.2,2.4572]
[1720851500790,5.01572289,3143.0,3142.2,2.4572]
[1720851501009,0.04863968,3142.3,3142.2,2.4572]
[1720851501203,0.55,3142.8,3142.2,2.4572]
[1720851501423,0.04864842,3142.3,3142.2,2.4572]
[1720851501629,0.55,3142.8,3142.2,2.4572]
[1720851501837,0.04864842,3142.3,3142.2,2.4572]
[1720851502046,0.55,3142.8,3142.2,4.68493]
[1720851502331,7.43,3142.9,3142.3,3.03862]
[1720851502657,0.0489032,3142.7,3142.4,2.22758]
[1720851502795,0.04896513,3142.8,3142.5,3.03848]
[1720851502996,0.04884126,3142.6,3142.5,3.03848]
[1720851503199,2.3507,3143.2,3142.5,3.03848]
[1720851503395,0.04885438,3142.6,3142.5,3.03848]
[1720851503726,0.04885438,3142.6,3142.5,0.811]
[1720851503934,4.68454388,3143.2,3142.5,0.811]
[1720851504141,0.04885438,3142.6,3142.5,0.811]
[1720851504323,4.68454388,3143.2,3142.5,0.811]
[1720851504519,0.04885438,3142.6,3142.5,0.811]
[1720851504753,4.68454388,3143.2,3142.5,0.811]
[1720851504954,0.04885438,3142.6,3142.5,0.811]
[1720851505253,4.68454388,3143.2,3142.5,0.811]
[1720851505439,0.04885438,3142.6,3142.5,0.811]
[1720851506057,4.68517351,3143.2,3142.5,0.811]
[1720851506260,0.04885438,3142.6,3142.5,0.811]
[1720851506469,4.68534754,3143.2,3142.5,0.811]
[1720851506628,0.04885438,3142.6,3142.5,0.811]
[1720851506837,4.68534754,3143.2,3142.5,0.811]
[1720851507147,0.04916403,3143.1,3142.5,0.811]
[1720851507532,0.04916403,3143.1,3142.5,3.03852]
[1720851507731,0.04916403,3143.1,3142.7,3.269]
[1720851507946,7.43,3143.3,3142.9,0.811]
[1720851508763,0.04920895,3143.2,3142.9,0.811]
[1720851508950,7.43,3143.3,3142.9,0.811]
[1720851509153,0.04911351,3143.1,3142.9,0.811]
[1720851509455,0.0485841,3143.0,3142.9,0.811]
[1720851509676,7.43,3143.3,3142.9,0.811]
[1720851509847,0.0485841,3143.0,3142.9,0.811]
[1720851510044,7.43,3143.3,3142.9,0.811]
[1720851510424,0.04873072,3143.2,3142.9,0.811]
[1720851510756,7.43,3143.3,3142.9,0.811]
[1720851510957,0.04866878,3143.1,3142.9,0.811]
[1720851511255,7.43,3143.3,3142.9,0.811]
[1720851511753,0.04873072,3143.2,3142.9,0.811]
[1720851511917,7.43,3143.3,3142.9,0.811]
[1720851512118,0.04866878,3143.1,3142.9,0.811]
[1720851512363,7.43,3143.3,3142.9,0.811]
[1720851512556,0.04860684,3143.0,3142.7,3.269]
[1720851512717,2.56703786,3143.6,3142.7,3.269]
[1720851512919,0.0485449,3142.9,3142.7,3.269]
[1720851513257,0.55,3143.5,3142.7,3.269]
[1720851513431,0.04848295,3142.8,3142.7,3.269]
[1720851513631,2.3708,3143.4,3142.7,3.269]
[1720851513821,2.3708,3143.4,3142.3,3.269]
[1720851514022,0.59879265,3143.3,3142.4,3.0]
[1720851514358,2.93240121,3143.3,3142.4,3.0]
[1720851514568,0.53032012,3143.2,3142.4,3.0]
[1720851514722,0.55,3143.1,3142.4,3.0]
[1720851514923,0.59866878,3143.1,3142.4,3.0]
[1720851515122,0.59866878,3143.1,3142.5,0.811]
[1720851517219,0.04866878,3143.1,3142.5,0.811]
[1720851517416,2.3344989,3143.3,3142.5,0.811]
[1720851517726,2.85375951,3143.2,3142.5,0.811]
[1720851517918,2.3708,3143.1,3142.0,4.68586]
[1720851518124,4.75396768,3143.1,3142.2,0.811]
[1720851518372,2.3344989,3143.0,3142.2,0.811]
[1720851518662,2.93474742,3143.0,3142.2,0.811]
[1720851518823,3.51235515,3143.0,3142.2,0.811]
[1720851519456,3.51264329,3143.0,3142.2,0.811]
[1720851519820,2.3708,3142.8,3142.0,0.811]
[1720851520051,4.70722872,3142.8,3142.0,0.811]
[1720851520259,0.0483939,3142.7,3142.0,0.811]
[1720851520632,1.33495616,3142.7,3141.7,3.0]
[1720851520872,2.33642872,3142.5,3141.6,0.811]
[1720851521173,4.70722872,3142.4,3141.6,0.811]
[1720851521335,4.70722872,3142.4,3141.8,0.811]
[1720851521543,2.3708,3142.4,3141.8,0.811]
[1720851521736,2.33642872,3142.6,3141.8,0.811]
[1720851522055,0.55,3142.5,3141.8,0.811]
[1720851522260,0.59870914,3142.5,3141.8,0.811]
[1720851524551,0.59870914,3142.5,3141.6,2.22814]
[1720851524881,0.59870914,3142.5,3141.8,0.811]
[1720851525084,1.17689888,3142.5,3141.8,0.811]
[1720851525235,3.51372492,3142.5,3141.8,0.811]
[1720851526072,3.51378292,3142.5,3141.6,3.03914]
[1720851526670,3.51384797,3142.5,3141.6,3.03914]
[1720851527376,2.2561,3142.3,3141.3,2.22834]
[1720851527537,0.55,3142.2,3141.6,0.811]
[1720851527738,0.59848032,3142.2,3141.6,0.811]
[1720851528250,0.59848032,3142.2,3141.8,0.811]
[1720851528437,0.04848032,3142.2,3141.8,0.811]
[1720851528638,2.33688927,3142.5,3141.8,0.811]
[1720851529020,0.04860422,3142.4,3141.8,0.811]
[1720851529368,2.2561,3142.6,3141.8,0.811]
[1720851529713,2.8868528,3142.5,3141.8,0.811]
[1720851529863,2.93546029,3142.5,3141.8,0.811]
[1720851531266,2.93546029,3142.5,3141.6,0.811]
[1720851532508,2.2561,3142.4,3141.6,0.811]
[1720851532666,2.30462464,3142.4,3141.6,0.811]
[1720851532864,0.55,3142.3,3141.6,0.811]
[1720851533069,0.04840074,3142.2,3141.6,0.811]
[1720851538012,0.04840074,3142.2,3141.1,2.2774]
[1720851538013,2.2561,3142.1,3141.1,2.2774]
[1720851538217,2.8061,3142.1,3141.2,0.811]
[1720851538387,0.04840219,3142.0,3141.2,0.811]
[1720851539067,0.04840219,3142.0,3141.4,0.811]
[1720851543641,0.04840219,3142.0,3141.6,0.811]
[1720851544637,0.04840219,3142.0,3141.6,3.03909]
[1720851545002,4.82921297,3142.3,3141.6,0.811]
[1720851545198,0.04734068,3141.9,3141.4,0.811]
[1720851545424,2.4929,3142.3,3141.4,0.811]
[1720851545623,0.04727869,3141.8,3141.4,0.811]
[1720851545868,2.4929,3142.2,3141.4,0.811]
[1720851546064,0.04778823,3141.7,3141.4,0.811]
[1720851546264,0.55,3142.1,3141.4,0.811]
[1720851546568,0.55,3142.1,3141.4,3.03929]
[1720851546722,0.04740179,3142.0,3141.4,3.03929]
[1720851547232,0.04740179,3142.0,3141.4,0.811]
[1720851548083,0.04740179,3142.0,3141.6,0.811]
[1720851549804,0.04740179,3142.0,3141.9,7.7527]
[1720851550096,0.04740179,3142.0,3141.9,12.98065]
[1720851550311,7.43,3142.9,3141.9,10.7527]
[1720851550462,7.43,3142.9,3142.8,3.03831]
[1720851550661,7.47143735,3142.9,3142.8,2.22731]
[1720851551697,0.04143735,3142.9,3142.8,2.22731]
[1720851551859,2.20557898,3143.1,3142.8,2.22731]
[1720851552365,0.04154564,3143.0,3142.8,2.22731]
[1720851554405,0.04154564,3143.0,3142.7,2.22738]
[1720851554957,0.04154564,3143.0,3142.8,2.22731]
[1720851556487,0.04154564,3143.0,3142.6,2.22743]
[1720851557312,0.04154564,3143.0,3142.7,2.22738]
[1720851561413,7.43,3143.5,3142.7,2.22738]
[1720851561618,0.04102234,3142.9,3142.7,2.22738]
[1720851561845,7.43,3143.5,3142.7,2.22738]
[1720851562140,0.04096039,3142.8,3142.7,2.22738]
[1720851562351,7.43,3143.5,3142.7,2.22738]
[1720851562640,0.04096039,3142.8,3142.7,2.22738]
[1720851562841,7.43,3143.5,3142.7,2.22738]
[1720851563334,0.04133202,3143.4,3142.7,2.22738]
[1720851563743,0.0412701,3143.3,3142.7,2.22738]
[1720851563946,0.55,3143.5,3142.7,2.22738]
[1720851564122,0.04120816,3143.2,3142.7,2.22738]
[1720851564334,0.55,3143.5,3142.7,2.22738]
[1720851564644,0.04124506,3143.1,3142.7,2.22738]
[1720851564797,0.55,3143.5,3142.7,2.22738]
[1720851565004,0.04118312,3143.0,3142.7,2.22738]
[1720851565202,0.55,3143.5,3142.7,2.22738]
[1720851565419,0.04112118,3142.9,3142.7,2.22738]
[1720851565745,0.04105923,3142.8,3142.5,7.45499]
[1720851565902,0.55,3143.5,3142.5,7.45499]
[1720851566108,0.30429,3143.4,3142.6,2.2274]
[1720851566305,0.34572086,3143.4,3142.6,2.2274]
[1720851567222,0.04143086,3143.4,3142.6,2.2274]
[1720851568009,0.04143086,3143.4,3142.7,2.22733]
[1720851568204,0.04143086,3143.4,3142.8,2.22731]
[1720851570624,0.04143086,3143.4,3142.8,3.03731]
[1720851572131,2.4107,3143.3,3142.5,3.0]
[1720851572448,0.79521309,3143.2,3142.5,0.81]
[1720851572764,0.79521309,3143.2,3142.5,3.81]
[1720851573057,0.04124856,3143.1,3142.5,3.81]
[1720851579337,2.4107,3143.0,3142.5,3.81]
[1720851579538,0.04111157,3142.9,3142.5,3.81]
[1720851580052,0.04111157,3142.9,3142.5,0.81]
[1720851580572,0.04111157,3142.9,3142.4,3.0]
[1720851580726,0.04111157,3142.9,3142.3,3.03764]
[1720851580727,0.28629273,3142.9,3142.3,3.03764]
[1720851580926,2.4107,3142.8,3142.3,3.03764]
[1720851581352,0.04098767,3142.7,3142.3,3.03764]
[1720851581626,2.4107,3142.8,3142.3,3.03764]
[1720851581857,0.04092572,3142.6,3142.3,3.03764]
[1720851582242,2.4107,3142.8,3142.3,3.03764]
[1720851582568,0.04086376,3142.5,3142.3,3.03764]
[1720851582728,0.04098767,3142.7,3142.3,3.03764]
[1720851583172,0.04092572,3142.6,3142.3,3.03764]
[1720851583674,2.4107,3142.8,3142.3,3.03764]
[1720851583875,0.04086376,3142.5,3142.3,3.03764]
[1720851584163,2.4107,3142.8,3142.3,3.03764]
[1720851584352,0.04080179,3142.4,3142.3,3.03764]
[1720851584526,0.04080179,3142.4,3142.1,3.0]
[1720851584727,2.4107,3142.8,3142.2,0.81]
[1720851584926,2.65177,3142.8,3142.2,0.81]
[1720851585179,0.04098767,3142.7,3142.2,0.81]
[1720851587056,2.3011,3142.6,3142.0,0.81]
[1720851587372,0.04086376,3142.5,3142.0,0.81]
[1720851591676,0.04086376,3142.5,3142.0,3.81]
[1720851594048,0.04086376,3142.5,3142.2,0.81]
[1720851595685,0.04086376,3142.5,3142.4,0.81]
[1720851595840,0.04086376,3142.5,3142.4,3.03759]
[1720851596039,2.3011,3142.9,3142.4,3.03759]
[1720851596239,0.0378667,3142.8,3142.4,3.03759]
[1720851599388,0.0378667,3142.8,3142.6,0.81]
[1720851599585,9.76723817,3143.1,3142.6,3.03744]
[1720851599757,2.33723817,3143.1,3142.6,2.22744]
[1720851600088,0.0379906,3143.0,3142.6,2.22744]
[1720851600448,2.33732761,3143.1,3142.4,3.03755]
[1720851600641,0.0379906,3143.0,3142.5,2.22752]
[1720851601648,0.0379906,3143.0,3142.6,2.22745]
[1720851602277,2.37531821,3143.0,3142.5,2.22752]
[1720851602481,0.0379906,3143.0,3142.5,2.22752]
[1720851602663,2.37556457,3143.0,3142.5,2.22752]
[1720851603489,2.37556457,3143.0,3142.6,2.22744]
[1720851604054,0.0379906,3143.0,3142.8,0.81]
[1720851604382,4.63867397,3143.2,3142.8,2.22729]
[1720851604894,0.03808317,3143.1,3142.8,2.22729]
[1720851606392,0.03808317,3143.1,3142.5,4.65289]
[1720851606393,0.50576656,3143.1,3142.5,0.81]
[1720851606552,0.50576656,3143.1,3142.5,3.03751]
[1720851606553,2.37586536,3143.1,3142.5,3.03751]
[1720851606753,0.03808317,3143.1,3142.5,3.03751]
[1720851607392,2.37586536,3143.1,3142.5,3.03751]
[1720851608553,2.37609952,3143.1,3142.5,3.03751]
[1720851609358,0.03808317,3143.1,3142.5,3.03751]
[1720851609659,2.37622662,3143.1,3142.6,2.22745]
[1720851609859,0.03808317,3143.1,3142.6,2.22745]
[1720851612409,2.37622662,3143.1,3142.6,2.22745]
[1720851612710,0.03808317,3143.1,3142.6,2.22745]
[1720851613410,0.03808317,3143.1,3142.8,2.2273]
[1720851614269,0.03808317,3143.1,3142.9,2.22723]
[1720851614804,9.7218,3143.4,3142.9,2.22723]
[1720851615022,0.0381961,3143.3,3142.9,2.22723]
[1720851618882,2.2918,3143.2,3142.8,2.2273]
[1720851619190,0.03813083,3143.1,3142.8,2.2273]
[1720851619928,0.03813083,3143.1,3142.4,2.22753]
[1720851620099,0.03813083,3143.1,3142.5,2.2275]
[1720851620626,2.2918,3143.0,3142.5,5.2275]
[1720851620823,0.03799907,3142.9,3142.5,3.0]
[1720851621136,0.03799907,3142.9,3142.4,3.0]
[1720851621433,0.03799907,3142.9,3142.3,3.81]
[1720851622605,0.03799907,3142.9,3142.5,0.81]
[1720851623006,0.03799907,3142.9,3142.5,3.81]
[1720851623434,0.03799907,3142.9,3142.5,6.03752]
[1720851628173,0.03799907,3142.9,3142.4,2.22759]
[1720851628381,0.03799907,3142.9,3142.0,2.22784]
[1720851628382,2.2731,3142.8,3142.0,2.22784]
[1720851628538,2.2731,3142.6,3142.0,2.22784]
[1720851628968,0.03773903,3142.5,3142.0,2.22784]
[1720851629963,0.03773903,3142.5,3142.0,5.22784]
[1720851630483,2.2731,3142.4,3142.0,5.22784]
[1720851630706,0.03757487,3142.3,3142.0,5.22784]
[1720851631678,0.07769744,3142.3,3142.1,0.81]
[1720851632308,0.07769744,3142.3,3142.2,2.22773]
[1720851632663,2.2731,3142.7,3142.2,2.22773]
[1720851632864,0.07649506,3142.6,3142.4,0.81]
[1720851636308,0.07649506,3142.6,3142.3,2.22766]
[1720851636678,0.07649506,3142.6,3142.2,0.81]
[1720851637091,0.07649506,3142.6,3142.2,3.03773]
[1720851643221,0.07367101,3142.5,3142.2,3.03773]
[1720851643406,1.68915074,3142.8,3142.2,3.03773]
[1720851643601,0.07124253,3142.7,3142.2,3.03773]
[1720851645749,0.07124253,3142.7,3142.0,5.22784]
[1720851646112,2.76357335,3142.9,3142.0,5.22784]
[1720851646313,2.3362,3142.5,3141.6,2.22812]
[1720851646618,2.3362,3142.5,3141.5,0.81]
[1720851646844,2.40751224,3142.4,3141.6,2.22812]
[1720851647754,2.40751224,3142.4,3141.6,5.22812]
[1720851648129,0.55,3142.3,3141.6,3.0]
[1720851648329,2.3362,3142.2,3141.5,0.81]
[1720851648547,2.9367072,3142.2,3141.0,2.22853]
[1720851648720,2.33877771,3141.9,3141.0,0.81]
[1720851648920,2.3362,3141.7,3140.8,2.22867]
[1720851649116,2.3362,3141.7,3140.9,0.81]
[1720851649323,0.07028158,3141.6,3140.8,2.22867]
[1720851649523,0.07028158,3141.6,3140.9,2.22865]
[1720851649731,0.07028158,3141.6,3140.9,0.81]
[1720851649934,2.8862,3141.5,3140.7,0.81]
[1720851650331,0.07009665,3141.4,3140.7,0.81]
[1720851652747,0.55,3141.3,3140.4,2.22896]
[1720851652950,0.55,3141.3,3140.6,0.81]
[1720851653148,0.06993713,3141.2,3140.6,0.81]
[1720851653751,0.06993713,3141.2,3140.8,0.81]
[1720851654140,2.3362,3141.5,3140.8,0.81]
[1720851654344,0.55,3141.4,3140.8,0.81]
[1720851654558,0.62002183,3141.4,3140.8,0.81]
[1720851659678,0.62002183,3141.4,3140.7,2.22879]
[1720851659679,1.65864401,3141.4,3140.7,2.22879]
[1720851660249,0.62002183,3141.4,3140.7,2.22879]
[1720851660568,0.62002183,3141.4,3140.8,3.03872]
[1720851662220,0.62002183,3141.4,3140.8,0.81]
[1720851664197,2.3759,3141.3,3140.5,5.22889]
[1720851664445,0.06911318,3141.2,3140.5,2.22889]
[1720851665305,0.06911318,3141.2,3140.4,3.0]
[1720851665510,0.06911318,3141.2,3140.3,2.22905]
[1720851665511,2.3759,3141.1,3140.3,2.22905]
[1720851666015,0.06967977,3141.0,3140.3,2.22905]
[1720851667106,0.06967977,3141.0,3140.3,2.22903]
[1720851667107,2.3759,3140.9,3140.3,2.22903]
[1720851667344,0.06955744,3140.8,3140.5,0.81]
[1720851667501,0.06955744,3140.8,3140.4,5.22899]
[1720851668034,0.06955744,3140.8,3140.4,3.0]
[1720851668232,0.06955744,3140.8,3140.3,6.03908]
[1720851671800,0.06955744,3140.8,3140.5,0.81]
[1720851672336,0.06955744,3140.8,3140.7,0.81]
[1720851673341,0.06955744,3140.8,3140.5,0.81]
[1720851677559,2.3759,3140.7,3140.5,0.81]
[1720851677869,2.3759,3141.9,3140.7,6.6864]
[1720851678022,2.3759,3142.2,3141.7,0.81]
[1720851678227,2.3759,3142.2,3141.9,0.81]
[1720851680628,2.3759,3142.2,3141.7,2.2917025]
[1720851681053,7.43,3142.3,3141.8,2.29163167]
[1720851681252,7.43,3142.3,3141.9,0.06364804]
[1720851681568,0.06014333,3142.2,3141.9,2.29153804]
[1720851681954,7.43,3142.3,3141.9,2.29153804]
[1720851682264,2.3759,3142.5,3141.9,2.22789]
[1720851682582,7.43,3143.2,3142.6,2.22739]
[1720851682764,7.43,3143.2,3142.7,2.29100985]
[1720851683092,7.43,3143.2,3142.6,2.22739]
[1720851683093,0.05850619,3143.1,3142.8,2.22729]
[1720851683748,0.05850619,3143.1,3142.8,2.29091818]
[1720851683944,2.3759,3143.4,3142.8,2.29091818]
[1720851684448,0.05838056,3143.3,3142.8,2.29091818]
[1720851685590,7.43,3143.6,3142.9,2.22724]
[1720851685750,0.0583199,3143.2,3142.9,2.22724]
[1720851685958,0.55,3143.5,3142.9,2.22724]
[1720851686174,0.05825925,3143.1,3142.9,2.22724]
[1720851686493,0.05819858,3143.0,3142.7,0.06362816]
[1720851686699,0.55,3143.5,3142.8,2.22725]
[1720851686893,0.05844121,3143.4,3142.8,2.29087814]
[1720851687596,0.05844121,3143.4,3142.9,2.22724]
[1720851691279,0.86228533,3143.4,3142.6,2.22745]
[1720851691495,0.86228533,3143.4,3142.7,2.22734]
[1720851693331,2.2869,3143.3,3142.7,2.22734]
[1720851693515,0.0586076,3143.2,3142.7,2.22734]
[1720851693824,0.0586076,3143.2,3142.6,3.0]
[1720851694125,0.0586076,3143.2,3142.7,2.22734]
[1720851695832,0.0586076,3143.2,3142.6,2.22745]
[1720851696340,0.0586076,3143.2,3142.7,2.22737]
[1720851697008,0.0586076,3143.2,3142.4,5.22756]
[1720851697009,0.55,3143.1,3142.4,3.0]
[1720851697339,0.05845044,3143.0,3142.2,2.22767]
[1720851697543,0.05845044,3143.0,3142.4,2.22758]
[1720851702783,0.05845044,3143.0,3142.4,3.03758]
[1720851702952,0.05845044,3143.0,3142.5,3.0]
[1720851708677,0.05845044,3143.0,3142.4,0.81]
[1720851712036,2.269,3142.9,3142.3,2.22766]
[1720851712231,2.269,3142.9,3142.3,5.22766]
[1720851712402,0.0567818,3142.8,3142.3,5.22766]
[1720851721128,0.0567818,3142.8,3142.4,0.81]
[1720851722162,0.0567818,3142.8,3142.6,0.81]
[1720851722479,0.0567818,3142.8,3142.6,3.03743]
[1720851722841,7.43,3143.2,3142.6,3.03743]
[1720851723037,0.05635657,3142.7,3142.6,3.03743]
[1720851723267,7.43,3143.2,3142.6,3.03743]
[1720851723737,0.05659924,3143.1,3142.6,3.03743]
[1720851724270,2.269,3143.3,3142.6,3.03743]
[1720851724427,0.05653858,3143.0,3142.6,3.03743]
[1720851724629,0.55,3143.2,3142.6,3.03743]
[1720851724861,0.05647791,3142.9,3142.6,3.03743]
[1720851725069,0.55,3143.2,3142.6,3.03743]
[1720851725261,0.05641724,3142.8,3142.6,3.03743]
[1720851725448,2.269,3143.3,3142.8,2.2273]
[1720851725872,7.43,3143.6,3143.1,3.0371]
[1720851725873,0.0566599,3143.2,3143.1,3.0371]
[1720851726236,4.67171827,3143.9,3143.2,2.22696]
[1720851726435,4.90510827,3143.9,3143.1,3.03704]
[1720851726631,2.39461613,3143.8,3143.1,3.03704]
[1720851726850,2.33781827,3143.7,3143.1,3.03704]
[1720851727257,0.05667659,3143.6,3143.1,3.03704]
[1720851727647,2.33781827,3143.9,3143.3,3.03695]
[1720851727846,12.85875611,3144.2,3143.3,3.10056801]
[1720851727847,0.05661595,3143.5,3143.3,3.10056801]
[1720851728048,2.33781827,3144.0,3143.3,3.10056801]
[1720851728248,0.05658883,3143.4,3143.3,3.10056801]
[1720851728579,2.33781827,3144.0,3143.3,3.10056801]
[1720851728734,1.24350265,3144.0,3143.3,3.10056801]
[1720851729075,0.0569423,3143.9,3143.7,0.81]
[1720851729462,2.33800255,3144.1,3143.7,0.81]
[1720851730083,0.05701966,3144.0,3143.9,0.81]
[1720851730376,7.43,3144.2,3143.8,2.22658]
[1720851730678,2.33800255,3144.4,3143.8,2.22658]
[1720851730878,2.33800255,3144.4,3143.7,0.81]
[1720851731104,2.3339,3144.2,3143.6,2.22674]
[1720851731251,2.3339,3144.2,3143.7,3.03666]
[1720851731561,4.67190255,3144.5,3143.7,3.03666]
[1720851731969,0.55,3144.4,3143.7,3.03666]
[1720851732994,0.05748981,3144.3,3143.7,3.03666]
[1720851733976,0.05748981,3144.3,3143.9,2.22652]
[1720851734183,0.05748981,3144.3,3143.9,3.03652]
[1720851734402,2.3339,3144.5,3143.9,3.03652]
[1720851734605,0.05742744,3144.2,3143.9,3.03652]
[1720851734821,2.3339,3144.5,3143.9,3.03652]
[1720851734998,0.05736683,3144.1,3143.9,3.03652]
[1720851735172,2.3339,3144.5,3143.9,3.03652]
[1720851735507,0.05755482,3144.4,3144.1,2.22637]
[1720851735877,10.09859777,3144.7,3144.1,2.22637]
[1720851736211,0.33326829,3144.7,3143.9,3.03648]
[1720851736370,0.0578965,3144.6,3144.0,2.22646]
[1720851739817,0.0578965,3144.6,3144.1,2.2899815]
[1720851740218,0.0578965,3144.6,3144.1,3.0999815]
[1720851741800,2.3339,3144.9,3144.1,3.0999815]
[1720851741987,0.05769096,3144.5,3144.1,3.0999815]
[1720851742189,0.55,3144.8,3144.1,3.0999815]
[1720851742388,0.05763036,3144.4,3144.1,3.0999815]
[1720851742637,0.55,3144.8,3144.1,3.0999815]
[1720851742815,0.05759006,3144.3,3144.1,3.0999815]
[1720851743013,0.55,3144.8,3144.1,3.0999815]
[1720851743203,0.05752945,3144.2,3144.1,3.0999815]
[1720851743398,0.55,3144.8,3144.1,3.0999815]
[1720851743816,0.05783245,3144.7,3144.1,3.0999815]
[1720851745403,0.05783245,3144.7,3144.2,2.22631]
[1720851745606,0.05783245,3144.7,3144.6,7.51486]
[1720851746005,0.00525696,3145.1,3144.9,2.22575]
[1720851746339,0.05394048,3145.0,3144.9,2.22575]
[1720851747607,0.05394048,3145.0,3144.9,2.22440449]
[1720851748696,0.05394048,3145.0,3144.8,0.81]
[1720851748915,0.05394048,3145.0,3144.8,3.03589]
[1720851749832,0.00525696,3145.1,3144.8,3.03589]
[1720851750222,0.00525696,3145.1,3145.0,0.81]
[1720851750644,0.05931354,3145.1,3145.0,0.81]
[1720851750798,0.00525696,3145.1,3145.0,0.81]
[1720851750998,0.00525696,3145.1,3144.9,2.22582]
[1720851752093,0.00525696,3145.1,3145.0,0.81]
[1720851752343,0.00525696,3145.1,3145.0,3.03575]
[1720851753940,0.00525696,3145.1,3145.0,0.81]
[1720851760769,0.00525696,3145.1,3144.8,0.81]
[1720851761871,0.00525696,3145.1,3144.8,3.03586]
[1720851764072,0.00525696,3145.1,3144.8,0.81]
[1720851764427,0.00525696,3145.1,3145.0,0.81]
[1720851768644,2.26805696,3145.1,3144.7,0.81]
[1720851768839,2.32183807,3145.1,3144.7,0.81]
[1720851774367,0.05903807,3145.1,3145.0,2.22575]
[1720851775379,0.05903807,3145.1,3144.9,0.81]
[1720851775677,0.05903807,3145.1,3144.9,3.03578]
[1720851777088,0.00525696,3145.1,3144.9,3.03578]
[1720851777241,0.00525696,3145.1,3144.9,7.56374]
[1720851777461,0.05329897,3145.0,3144.9,5.33796]
[1720851777658,0.00525696,3145.1,3145.0,2.22575]
[1720851782201,0.00525696,3145.1,3144.7,2.22593]
[1720851782357,0.00525696,3145.1,3144.5,5.22609]
[1720851782559,0.05862748,3145.1,3144.6,6.03603]
[1720851782795,0.05862748,3145.1,3144.6,3.03603]
[1720851782796,0.00525696,3145.1,3144.6,3.03603]
[1720851783017,0.05338668,3145.0,3144.6,3.03603]
[1720851783303,0.00525696,3145.1,3144.6,3.03603]
[1720851783655,0.05335392,3145.0,3144.6,3.03603]
[1720851785710,0.05335392,3145.0,3144.4,5.22617]
[1720851785880,0.05335392,3145.0,3144.6,0.81]
[1720851786903,0.05335392,3145.0,3144.6,3.0]
[1720851787102,0.05335392,3145.0,3144.6,3.81]
[1720851789970,0.05335392,3145.0,3144.8,0.81]
[1720851791068,0.05335392,3145.0,3144.8,3.03589]
[1720851795615,0.05335392,3145.0,3144.9,2.22582]
[1720851797905,0.05335392,3145.0,3144.8,3.03588]
[1720851798240,0.05335392,3145.0,3144.8,5.26173]
[1720851798546,0.05335392,3145.0,3144.9,2.22582]
[1720851798894,0.05335392,3145.0,3144.8,3.03585]
[1720851800744,0.05335392,3145.0,3144.8,2.22585]
[1720851803158,0.05335392,3145.0,3144.8,3.03585]
[1720851803316,0.05335392,3145.0,3144.8,5.2617]
[1720851803650,0.05335392,3145.0,3144.8,3.03585]
[1720851804912,0.05335392,3145.0,3144.8,5.26169]
[1720851806948,0.05335392,3145.0,3144.8,2.22584]
[1720851808413,0.05335392,3145.0,3144.6,6.036]
[1720851808414,0.05335392,3145.0,3144.6,6.03597]
[1720851808614,0.05335392,3145.0,3144.7,2.22595]
[1720851813475,0.05335392,3145.0,3144.6,3.81]
[1720851814846,0.05335392,3145.0,3144.6,6.03603]
[1720851815123,0.05335392,3145.0,3144.9,5.26164]
[1720851815422,0.05335392,3145.0,3144.9,12.87734572]
[1720851815628,0.00525696,3145.1,3145.0,4.4515]
[1720851815836,0.00525696,3145.1,3145.0,7.51507289]
[1720851816041,0.00525696,3145.1,3145.0,8.32507289]
[1720851816428,0.00525696,3145.1,3145.0,10.55082289]
[1720851816624,0.00525696,3145.1,3145.0,9.74082289]
[1720851816875,0.00525696,3145.1,3145.0,10.55082289]
[1720851818930,0.00525696,3145.1,3145.0,12.87712289]
[1720851819852,0.00525696,3145.1,3145.0,15.10287289]
[1720851820057,2.33808548,3146.7,3146.1,2.22491]
[1720851820341,9.7616,3146.8,3146.6,0.81]
[1720851820342,7.43,3146.8,3146.6,0.81]
[1720851820756,7.43,3146.8,3146.4,0.81]
[1720851821069,2.33629432,3147.0,3146.4,0.81]
[1720851821274,2.33629432,3147.1,3146.5,2.38986085]
[1720851821441,0.40081854,3147.3,3147.2,4.44838]
[1720851821648,0.40081854,3147.3,3147.2,4.51191519]
[1720851821985,0.0678117,3147.3,3147.2,5.32191519]
[1720851822285,0.0678117,3147.3,3147.2,9.73609776]
[1720851822579,0.0678117,3147.3,3147.2,7.44838]
[1720851823247,0.0678117,3147.3,3147.2,9.67257]
[1720851825254,0.0678117,3147.3,3147.2,7.44838]
[1720851828357,0.0678117,3147.3,3147.2,5.22419]
[1720851828756,0.0678117,3147.3,3147.2,5.28772304]
[1720851829152,0.0678117,3147.3,3147.2,5.22419]
[1720851830225,0.0678117,3147.3,3147.2,3.0]
[1720851830422,0.0678117,3147.3,3147.0,3.0]
[1720851830581,0.0678117,3147.3,3146.9,2.22439]